Cogmind - Beta 17 @@@ ROGUE MODE // 2026.07.08 @ 13:05:54 Player: Zish Result: Destroyed by as-66263 with Assembled Heavy Rifle Performance ------------- Evolutions (0) 0 Regions Visited (2) 400 Robots Destroyed (27) 135 Value Destroyed (605) 605 Prototype IDs (2) 40 Alien Tech Used (0) 0 Bonus (0) 0 TOTAL SCORE: 1180 Bonus ------- None Cogmind --------- Core Integrity 0/250 Matter 210/300 Energy 123/125 System Corruption 2% Temperature Cool (0) Movement Hovering (176) Ox2 Location -10/Mines Parts ------- > --- POWER (1) -------- Light Ion Engine (fused) > --- PROPULSION (2) --- Improved Hover Unit Improved Hover Unit > --- UTILITY (2) ------ Large Storage Unit > --- WEAPON (2) ------- Shotgun Shotgun > --- INVENTORY (15) --- Ion Engine Light Ion Engine Improved Hover Unit VTOL Module VTOL Module VTOL Module VTOL Module Hacking Suite Hacking Suite Shotgun Shotgun Grenade Launcher Mining Claw Peak State ------------ > --- POWER ------------ Light Ion Engine > --- PROPULSION ------- Improved Hover Unit Improved Hover Unit > --- UTILITY ---------- Large Storage Unit Hardened Light Armor Plating > --- WEAPON ----------- Shotgun Shotgun > --- INVENTORY -------- Ion Engine Light Ion Engine Improved Hover Unit VTOL Module VTOL Module VTOL Module VTOL Module Hacking Suite Hacking Suite Shotgun Shotgun Grenade Launcher Mining Claw [Rating: 14] Favorites ----------- Power Ion Engine Engine Ion Engine Propulsion Light Treads Treads Light Treads Hover Unit Improved Hover Unit Utility Hardened Light Armor Plating Storage Small Storage Unit Protection Hardened Light Armor Plating Weapon Assault Rifle Ballistic Gun Assault Rifle Build | -11 -10 -10 ------- Run | Yrd Mat Min Slots Evolved . | . . . Power . | . . . Propulsion . | . . . Utility . | . . . Weapon . | . . . Parts Attached 16 | 6 8 2 Power 4 | 1 3 . Engine 4 | 1 3 . Core . | . . . Reactor . | . . . Propulsion 4 | 2 2 . Treads 2 | 2 . . Leg . | . . . Wheel . | . . . Hover 2 | . 2 . Flight . | . . . Utility 3 | 1 2 . Device . | . . . Storage 2 | 1 1 . Processor . | . . . Hackware . | . . . Protection 1 | . 1 . Artifact . | . . . Weapon 5 | 2 1 2 Energy Gun . | . . . Energy Cannon . | . . . Ballistic Gun 5 | 2 1 2 Ballistic Cannon . | . . . Launcher . | . . . Special Weapon . | . . . Impact Weapon . | . . . Slashing Weapon . | . . . Piercing Weapon . | . . . Special Melee Weapon . | . . . Unidentified Prototypes . | . . . Parts Lost 2 | . 2 . Power . | . . . Propulsion 1 | . 1 . Utility . | . . . Weapon 1 | . 1 . Highest Loss Streak 2 | . 2 . To Critical Strikes . | . . . Average Backups 8 | . 8 13 Power 1 | . 1 2 Propulsion 1 | . 1 5 Utility 1 | . 1 2 Weapon 3 | . 3 4 Tool/Special . | . . . Unused Backups 14 | . 2 12 Power 1 | . . 1 Propulsion 5 | . . 5 Utility 2 | . . 2 Weapon 6 | . 2 4 Tool/Special . | . . . Average Slot Usage (%) 87 | . 86 91 Engine 13 | . 13 14 Treads 16 | . 17 . Hover 4 | . 3 28 Storage 14 | . 14 14 Protection 9 | . 9 7 Ballistic Gun 27 | . 28 26 Peak Build Rating 14 | 6 12 14 Average Rating 8 | 5 7 12 On Entrance 6 | . 6 12 Avg Prop Armor Cover (%) . | . . . Naked Turns . | . . . Heaviest Build 34 | 14 34 34 Greatest Support 40 | 40 40 14 Greatest Overweight (x) 10 | 3 10 2 Average Overweight (x) . | . . 2 Largest Inventory Capacity 15 | 8 15 15 Average Capacity 10 | 7 10 15 Most Carried 15 | 2 15 15 Average Carried 8 | . 8 13 Final Capacity 15 | 8 15 15 Final Carried 15 | 2 15 13 Class Distribution -------------------- 100% | Mutant Dominant Class ---------------- Mutant | -10/Materials Mutant | -10/Mines Resources | -11 -10 -10 ----------- Run | Yrd Mat Min Matter Collected 970 | 217 701 52 Remotely . | . . . Salvage Created 1036 | 90 884 62 Parts 51 | . 51 . Haulers Intercepted 1 | . 1 . Recyclers Shooed 1 | . 1 . Parts Field Recycled . | . . . Retrieved Matter . | . . . Parts Self-Destructed . | . . . Prevented . | . . . Parts Restored . | . . . Kills | -11 -10 -10 ------- Run | Yrd Mat Min Combat Hostiles Destroyed 20 | . 14 6 Guns 20 | . 14 6 Classes Destroyed 8 | 1 6 1 Worker 5 | . 5 . Builder 2 | . 2 . Hauler 1 | . 1 . Recycler 2 | 1 1 . Operator 2 | . 2 . Watcher 1 | . 1 . Grunt 14 | . 14 . Assembled 6 | . . 6 Best Kill Streak 7 | 1 7 4 Combat Bots Only 4 | . 3 4 Max Kills in Single Turn 2 | 1 2 1 Gunslinging . | . . . Exploded . | . . . Melee . | . . . Uniques/NPCs Destroyed . | . . . Combat | -11 -10 -10 -------- Run | Yrd Mat Min Hostile Shots Fired 110 | . 94 16 Missed 29 | . 27 2 Hits 81 | . 67 14 Melee 7 | . . 7 Projectile 74 | . 67 7 Critical Strikes 1 | . . 1 Damage Taken 1130 | . 837 293 Core 259 | . 191 68 Absorbed by Shields . | . . . Core Remaining (%) 100 | 100 . . Volleys Fired 105 | 5 87 13 Largest 2 | 1 2 2 Hottest 46 | 20 40 46 Shots Fired 204 | 5 173 26 Gun 204 | 5 173 26 Cannon . | . . . Launcher . | . . . Special . | . . . Kinetic 204 | 5 173 26 Thermal . | . . . Explosive . | . . . Electromagnetic . | . . . Robot Hit Streak 12 | 4 12 3 Robot Miss Streak 5 | 1 5 4 Penetration Max . | . . . Secondary Targets 1 | . . 1 Max Gunslinging Chain 1 | . . 1 Shots Hit Robots 134 | 4 111 19 Core Hits 67 | 2 51 14 Critical Kills . | . . . Critical Parts Destroyed . | . . . Critical Strikes . | . . . Melee Attacks . | . . . Impact . | . . . Slashing . | . . . Piercing . | . . . Sneak Attacks . | . . . Combat Hostiles . | . . . Follow-up Attacks . | . . . Damage Inflicted 1731 | 54 1440 237 Guns 1721 | 54 1430 237 Cannons . | . . . Explosions . | . . . Melee . | . . . Ramming 10 | . 10 . Kinetic 1721 | 54 1430 237 Thermal . | . . . Explosive . | . . . Electromagnetic . | . . . Impact . | . . . Slashing . | . . . Piercing . | . . . Highest Corruption 2 | . 2 2 Average Corruption 2 | . 2 2 Corruption Purged . | . . . Corruption Blocked . | . . . Effects 35 | . 31 4 Message Errors 7 | . 5 2 Matter Fused 10 | . 10 . Heat Flow Errors 6 | . 4 2 Energy Discharges 5 | . 5 . Parts Fused 2 | . 2 . Data Loss (minor) 2 | . 2 . Data Loss (major) 2 | . 2 . Alerts 1 | . 1 . Overload Shots . | . . . Overflow Damage . | . . . Projectiles . | . . . Explosions . | . . . Melee . | . . . Knockbacks . | . . . Impact . | . . . Kinetic . | . . . Secondary . | . . . Self-Inflicted Damage 9 | . 9 . Shots . | . . . Rammed 1 | . 1 . Targets Rammed 1 | . 1 . Kicked . | . . . Crushed . | . . . Highest Temperature 270 | . 270 242 Average Temperature 65 | . 57 81 Received Heat Transfer 473 | . 453 20 Effects 1 | . 1 . Interference 1 | . 1 . Siege Activations . | . . . Martial Activations . | . . . Shielding Activations . | . . . Robots Disrupted . | . . . Combat Hostiles . | . . . Robots Corrupted . | . . . Combat Hostiles . | . . . Parts Fried . | . . . Impact Corruptions . | . . . Robots Melted . | . . . Combat Hostiles . | . . . Parts Melted . | . . . Heat Transferred . | . . . Parts Sabotaged . | . . . Parts Stolen . | . . . Parts Stripped . | . . . Power Chain Reactions . | . . . Alert | -11 -10 -10 ------- Run | Yrd Mat Min Maximum Alert Level . | . . . Low Security (%) 100 | 100 100 100 Level 1 . | . . . Level 2 . | . . . Level 3 . | . . . Level 4 . | . . . Level 5 . | . . . High Security . | . . . Max Security . | . . . Peak Influence 149 | 5 149 1 Initial 1 | . . 1 Average 19 | . 21 . Influence Increases 480 | 5 475 . Destroy 0b10 Robot/C 280 | . 280 . Destroy 0b10 Robot/NC 65 | 5 60 . Destroy Leader 64 | . 64 . Successful Hack 36 | . 36 . Destroy Structure 5 | . 5 . Lose Combat Pursuer 30 | . 30 . Influence Decreases 480 | 5 471 4 Entered New Map 3 | . . 3 Time Decay 337 | 5 331 1 Lost Part 20 | . 20 . Purge Threat 120 | . 120 . Squads Dispatched 3 | . 3 . Investigation 1 | . 1 . Extermination . | . . . Reinforcement 2 | . 2 . Assault . | . . . Garrison . | . . . Intercept . | . . . Searches Triggered . | . . . Construction Impeded . | . . . Haulers Reinforced . | . . . Active Scanning Responses . | . . . Cargo Convoy Interrupts . | . . . Stealth | -11 -10 -10 --------- Run | Yrd Mat Min Distress Signals 4 | . 4 . Communications Jammed . | . . . Distress Signals . | . . . Times Spotted 45 | . 34 11 Peak Tracking Total 7 | . 5 7 Tactical Retreats 2 | . 2 . Traps | -11 -10 -10 ------- Run | Yrd Mat Min Traps Triggered 1 | . 1 . Indirectly . | . . . Trap Hack Attempts . | . . . Triggered . | . . . Disarmed 4 | . 4 . Reprogrammed . | . . . Reused . | . . . Traps Extracted . | . . . Installed . | . . . Triggered . | . . . Machines | -11 -10 -10 ---------- Run | Yrd Mat Min Machines Disabled . | . . . Max in Single Turn . | . . . Machines Repaired . | . . . Machines Dismantled . | . . . Machines Sabotaged . | . . . Overloaded Fab Kills . | . . . Hacking | -11 -10 -10 --------- Run | Yrd Mat Min Machines Accessed 6 | . 6 . Terminals 6 | . 6 . Fabricators . | . . . Repair Stations . | . . . Recycling Units . | . . . Scanalyzers . | . . . Garrison Access . | . . . Total Hacks 14 | . 14 . Successful 7 | . 7 . Failed 7 | . 7 . Catastrophic 1 | . 1 . Database Lockouts . | . . . Manual 2 | . 2 . Terminals 14 | . 14 . Fabricators . | . . . Repair Stations . | . . . Recycling Units . | . . . Scanalyzers . | . . . Garrison Access . | . . . Terminal Hacks 6 | . 6 . Record 1 | . 1 . Prototype ID Bank 1 | . 1 . Branch Access Points 1 | . 1 . Unreport Threat 1 | . 1 . Locate Traps 1 | . 1 . Disarm Traps 1 | . 1 . Fabricator Hacks . | . . . Repair Station Hacks . | . . . Recycling Unit Hacks . | . . . Scanalyzer . | . . . Garrison Access Hacks . | . . . Unauthorized Hacks 1 | . 1 . Terminals 1 | . 1 . Operators 1 | . 1 . Fabricators . | . . . Repair Stations . | . . . Recycling Units . | . . . Scanalyzers . | . . . Garrison Access . | . . . Data Cores Recovered . | . . . Used . | . . . Hacking Detections 5 | . 5 . Full Trace Events 2 | . 2 . Feedback Events . | . . . Feedback Blocked . | . . . Robot Schematics Acquired . | . . . Robots Built . | . . . Authchips . | . . . Time . | . . . Total Robot Build Rating . | . . . Part Schematics Acquired . | . . . Parts Built . | . . . Authchips . | . . . Time . | . . . Total Part Build Rating . | . . . Part Studies Acquired . | . . . Parts Repaired . | . . . Time . | . . . Parts Recycled . | . . . Recycled Matter . | . . . Retrieved Matter . | . . . Retrieved Components . | . . . Parts Scanalyzed . | . . . Part Schematics Acquired . | . . . Parts Damaged . | . . . Bothacking | -11 -10 -10 ------------ Run | Yrd Mat Min Used RIF Installer . | . . . Robots Hacked . | . . . Non-combat . | . . . Combat . | . . . Robot Hacks Applied . | . . . Relay Couplers Released . | . . . Fabnet Peak Effective % . | . . . Robots Rewired . | . . . Allies Hacked . | . . . Hacks Repelled . | . . . Allies | -11 -10 -10 -------- Run | Yrd Mat Min Total Allies . | . . . Largest Group . | . . . Highest-Rated Group . | . . . Highest-Rated Ally . | . . . Total Orders . | . . . Ally Attacks . | . . . Total Damage . | . . . Kills . | . . . Allies Corrupted . | . . . Allies Melted . | . . . Intel | -11 -10 -10 ------- Run | Yrd Mat Min Active Infowar (turns) . | . . . Robot Analysis Total . | . . . Derelict Logs Recovered 1 | . . 1 Drone Launches . | . . . Drone Recoveries . | . . . Exploration | -11 -10 -10 ------------- Run | Yrd Mat Min Turns Passed 2501 | 110 2274 117 Spaces Moved 1123 | 58 1021 44 Core 8 | 7 1 . Treads 937 | 51 886 . Legs . | . . . Wheels . | . . . Hover 178 | . 134 44 Flight . | . . . Fastest Speed 50 | 50 160 176 Average Speed 180 | 156 181 176 Slowest Speed 550 | 200 550 176 Overloaded Moves . | . . . Propulsion Burnouts . | . . . Robots Hopped . | . . . Potential Cave-ins . | . . . Cave-ins Triggered . | . . . Exploration Rate (%) 39 | 4 97 16 Regions Visited 2 Branch Regions 1 Pre-discovered Areas . | . . . Known Exits Taken 1 | . 1 . Unknown Exits Taken 1 | 1 . . Scrap Searched . | . . . Spaces Dug . | . . . Terrain Destroyed . | . . . Melee . | . . . Projectile . | . . . AOE . | . . . Terrain Rammed 1 | . 1 . Walls Destroyed . | . . . Machines Disabled . | . . . Actions | -11 -10 -10 --------- Run | Yrd Mat Min Total 1394 | 70 1263 61 Wait 124 | . 124 . Move 1121 | 57 1020 44 Hop . | . . . Pick Up 18 | 2 16 . Fast Attach 9 | 6 3 . Attach 4 | . 2 2 Detach 1 | . 1 . Swap 3 | . 3 . Drop 7 | . 5 2 Fire 105 | 5 87 13 Melee . | . . . Ram 1 | . 1 . Kick . | . . . Crush 1 | . 1 . Escape Stasis . | . . . Rewire . | . . . Trap . | . . . Miscellaneous . | . . . Route ------- -11/Scrapyard -10/Materials (discovered 4 exits: [*Mat x3] / *Min) -10/Mines History --------- Turn | Location | Event 9 | -11/Scrapyard | Discovered new exit (range 15) 111 | -11/Scrapyard | Entered Materials 316 | -10/Materials | Build established: Mutant 466 | -10/Materials | Discovered new exit (range 15) 777 | -10/Materials | Core integrity fell below 50% 979 | -10/Materials | Discovered new exit (range 16) 1296 | -10/Materials | Discovered new exit (range 14) 1661 | -10/Materials | Discovered new exit (range 5) 2252 | -10/Materials | Identified exit to Mines 2385 | -10/Materials | Entered Mines 2408 | -10/Mines | Learned Materials stockpile data 2414 | -10/Mines | Assembled infested the area 2432 | -10/Mines | Core integrity fell below 20% 2502 | -10/Mines | Destroyed by as-66263 with Assembled Heavy Rifle Last Messages --------------- 02442_ T-07 Excavator system terminally corrupted. 02443_ as-46216 destroyed. 02446_ Hrd. Light Armor Plating severed. 02452_ Destroyed Asb. Hover Unit. 02452_ as-50316 destroyed. 02453_ K-01 Serf collects debris. 02455_ System corrupted: Heat flow error (+249). 02455_ Acquired 11 matter. 02456_ K-01 Serf collects debris. 02456_ Acquired 7 matter. 02458_ Acquired 15 matter. 02462_ Acquired 12 matter. 02463_ K-01 Serf collects debris. 02464_ Acquired 7 matter. 02467_ K-01 Serf collects debris. 02484_ The unstable cave ceiling collapses. 02492_